bitfinex-derivatives/quotes_BTCF0:USTF0_20241210
["timestamp","ask_amount","ask_price","bid_price","bid_amount"]
[1733845013246,6e-05,97158.0,97157.0,0.002]
[1733845013442,6e-05,97158.0,97157.0,0.005]
[1733845013644,6e-05,97158.0,97149.0,0.01024183]
[1733845013645,0.30006,97158.0,97149.0,0.01024183]
[1733845013945,0.30006,97158.0,97145.0,9.296e-05]
[1733845013946,0.051445,97146.0,97145.0,9.296e-05]
[1733845014247,0.36086,97146.0,97119.0,0.051459]
[1733845014449,0.412255,97129.0,97119.0,0.051459]
[1733845014658,6e-05,97120.0,97119.0,0.051459]
[1733845015040,0.3608,97146.0,97145.0,0.051446]
[1733845015246,0.00011916,97146.0,97145.0,0.412246]
[1733845015550,0.00011916,97146.0,97145.0,0.051566]
[1733845017252,0.00011916,97146.0,97145.0,0.054566]
[1733845018053,0.00011916,97146.0,97145.0,0.00312]
[1733845018249,0.00011916,97146.0,97145.0,0.00612]
[1733845018448,0.00011916,97146.0,97145.0,0.36692]
[1733845018861,0.00011916,97146.0,97145.0,0.36392]
[1733845019050,0.00011916,97146.0,97145.0,0.36792]
[1733845019655,0.00011916,97146.0,97145.0,0.37784489]
[1733845020253,0.00011916,97146.0,97145.0,0.05611687]
[1733845020757,0.00011916,97146.0,97135.0,0.24535293]
[1733845020949,0.3608,97143.0,97124.0,0.18202346]
[1733845021151,0.3608,97143.0,97122.0,0.00012736]
[1733845021152,0.3608,97133.0,97122.0,0.00012736]
[1733845021354,0.3608,97133.0,97126.0,0.03911709]
[1733845021754,0.051454,97129.0,97127.0,0.03911709]
[1733845021953,0.051454,97129.0,97115.0,0.30314784]
[1733845021954,0.3608,97128.0,97115.0,0.30314784]
[1733845022163,0.051462,97114.0,97113.0,0.00112]
[1733845022460,6e-05,97114.0,97113.0,0.00112]
[1733845023061,6e-05,97114.0,97111.0,0.0098102]
[1733845023362,6e-05,97114.0,97090.0,0.21458263]
[1733845023363,6e-05,97112.0,97096.0,0.02096582]
[1733845023660,6e-05,97114.0,97096.0,0.02096582]
[1733845023661,6e-05,97097.0,97096.0,0.02096582]
[1733845023862,6e-05,97097.0,97096.0,0.07243782]
[1733845024050,6e-05,97114.0,97113.0,0.051463]
[1733845024366,0.48343106,97128.0,97113.0,0.051463]
[1733845024367,0.12263106,97133.0,97113.0,0.412383]
[1733845024559,0.0798397,97133.0,97132.0,0.412253]
[1733845024754,0.17558753,97136.0,97135.0,0.051451]
[1733845025062,0.17558753,97136.0,97135.0,0.051571]
[1733845025364,0.17558753,97136.0,97135.0,0.00012]
[1733845025662,0.15368205,97136.0,97135.0,0.06147446]
[1733845025853,0.15368205,97137.0,97135.0,0.412371]
[1733845026053,0.15368205,97145.0,97135.0,0.36092]
[1733845026252,0.00011916,97146.0,97144.0,0.051446]
[1733845026455,0.15379029,97146.0,97144.0,0.051566]
[1733845026760,0.00011916,97146.0,97145.0,0.00012]
[1733845027260,0.05145,97137.0,97135.0,0.01932009]
[1733845027456,0.35016144,97146.0,97104.0,0.051467]
[1733845027457,0.051457,97124.0,97104.0,0.051467]
[1733845027660,0.41084228,97136.0,97104.0,0.06132233]
[1733845027661,0.3608,97126.0,97104.0,0.06132233]
[1733845027855,0.051459,97120.0,97104.0,0.00985533]
[1733845028055,0.3608,97126.0,97125.0,0.00012]
[1733845028056,0.412256,97126.0,97125.0,0.00012]
[1733845028253,0.412256,97126.0,97090.0,0.00010102]
[1733845028254,0.051466,97107.0,97093.0,0.02048394]
[1733845028565,6e-05,97094.0,97090.0,0.00010102]
[1733845029155,0.3608,97091.0,97090.0,0.00010102]
[1733845029661,0.36086,97091.0,97090.0,0.00010102]
[1733845029867,0.412334,97091.0,97090.0,0.00010102]
[1733845030366,0.051478,97085.0,97066.0,0.06019659]
[1733845030573,0.412286,97069.0,97067.0,0.06015122]
[1733845030762,0.05149,97062.0,97053.0,0.02097477]
[1733845031066,0.3608,97059.0,97053.0,0.02097477]
[1733845031462,7.33e-05,97058.0,97053.0,0.02097477]
[1733845031659,7.33e-05,97058.0,97048.0,0.051497]
[1733845032063,6e-05,97049.0,97048.0,0.051497]
[1733845032970,6e-05,97049.0,97030.0,0.00012844]
[1733845032971,6e-05,97049.0,97046.0,0.01142607]
[1733845033268,6e-05,97047.0,97046.0,0.01142607]
[1733845033764,6e-05,97047.0,97046.0,0.00988064]
[1733845033953,6e-05,97047.0,97036.0,0.051503]
[1733845034365,6e-05,97037.0,97036.0,0.051503]
[1733845034762,6e-05,97037.0,97036.0,0.07206784]
[1733845034962,0.001,97049.0,97036.0,0.73286784]
[1733845035162,7.33e-05,97058.0,97057.0,0.051492]
[1733845035369,7.33e-05,97058.0,97057.0,0.412292]
[1733845037468,7.33e-05,97058.0,97057.0,0.72252002]
[1733845037469,3e-07,97058.0,97057.0,0.72252002]
[1733845037666,3e-07,97058.0,97057.0,0.42452002]
[1733845038067,3e-07,97058.0,97057.0,0.72452002]
[1733845038264,3e-07,97058.0,97057.0,0.72652002]
[1733845039075,3e-07,97058.0,97057.0,0.43352002]
[1733845039076,0.0010003,97058.0,97057.0,0.43352002]
[1733845039982,0.0010003,97058.0,97057.0,0.38802802]
[1733845040759,0.0010003,97058.0,97057.0,0.38702802]
[1733845041167,0.0010003,97058.0,97057.0,0.02622802]
[1733845041370,0.0524923,97058.0,97057.0,0.02622802]
[1733845041575,3e-07,97058.0,97057.0,0.002]
[1733845041874,0.0514923,97058.0,97057.0,0.002]
[1733845042171,0.0514923,97058.0,97048.0,0.00012]
[1733845042172,0.051496,97051.0,97048.0,0.00012]
[1733845042371,0.3608,97049.0,97048.0,0.00012]
[1733845042669,0.412357,97049.0,97048.0,0.00012]
[1733845042875,0.412357,97049.0,97016.0,0.3608]
[1733845042876,0.051503,97038.0,97016.0,0.051514]
[1733845043172,0.051506,97031.0,97016.0,0.051514]
[1733845043479,0.051566,97031.0,97025.0,0.01006001]
[1733845043667,0.051566,97031.0,97016.0,0.051514]
[1733845044173,0.051566,97031.0,97017.0,0.051513]
[1733845044362,0.051566,97031.0,97009.0,0.051518]
[1733845044675,0.05152,97006.0,96995.0,0.3608]
[1733845044975,0.051582,97001.0,96985.0,0.36156]
[1733845045165,0.051582,97001.0,96987.0,0.01026364]
[1733845045571,0.05166138,97001.0,96987.0,0.01026364]
[1733845046271,0.00013938,97001.0,96987.0,0.01026364]
[1733845046471,0.05166138,97001.0,96992.0,0.051526]
[1733845046678,0.05166138,97001.0,97000.0,0.105]
[1733845046867,0.051529,96988.0,96987.0,0.01026364]
[1733845047062,0.051529,96988.0,96972.0,0.3608]
[1733845047063,0.3608,96988.0,96972.0,0.3608]
[1733845047373,0.3608,96979.0,96962.0,0.3608]
[1733845047567,0.3608,96979.0,96953.0,0.051547]
[1733845047568,0.3608,96979.0,96966.0,0.01011859]
[1733845047765,6e-05,96967.0,96966.0,0.05163043]
[1733845048373,6e-05,96967.0,96966.0,8.943e-05]
[1733845048572,0.0516,96967.0,96966.0,8.943e-05]
[1733845049273,6e-05,96967.0,96966.0,8.943e-05]
[1733845050463,0.00106,96967.0,96966.0,0.00408943]
[1733845050664,0.00106,96967.0,96966.0,0.00924587]
[1733845050864,6e-05,96967.0,96966.0,0.00524587]
[1733845051167,0.00206,96967.0,96966.0,0.01624587]
[1733845051474,0.00206,96967.0,96966.0,0.06778687]
[1733845051670,0.00206,96967.0,96966.0,0.01624587]
[1733845051875,0.0536,96967.0,96966.0,0.01624587]
[1733845052668,0.30216649,96967.0,96935.0,0.02050292]
[1733845052876,0.3608,96938.0,96936.0,0.00515804]
[1733845053477,0.3608,96938.0,96935.0,0.02050292]
[1733845053675,0.3608,96938.0,96924.0,0.051563]
[1733845053871,0.3608,96938.0,96913.0,9.968e-05]
[1733845053872,0.3608,96930.0,96926.0,0.051562]
[1733845054376,0.3608,96930.0,96918.0,0.051566]
[1733845054679,0.3608,96930.0,96913.0,9.968e-05]
[1733845054874,6e-05,96919.0,96913.0,0.05166868]
[1733845055579,6e-05,96919.0,96913.0,9.968e-05]
[1733845056180,6e-05,96919.0,96917.0,0.3608]
[1733845056478,6e-05,96919.0,96913.0,9.968e-05]
[1733845056777,6e-05,96914.0,96913.0,9.968e-05]
[1733845057882,6e-05,96914.0,96913.0,0.05766868]
[1733845058284,0.00106,96914.0,96913.0,0.05766868]
[1733845058488,0.00106,96914.0,96913.0,0.05166868]
[1733845058679,0.21448161,96960.0,96935.0,0.051557]
[1733845058982,0.3608,96962.0,96913.0,0.35766868]
[1733845058983,0.3608,96962.0,96949.0,0.00012]
[1733845059179,0.3608,96962.0,96951.0,0.051549]
[1733845059377,0.3608,96962.0,96961.0,0.00012]
[1733845059785,0.36090256,96962.0,96961.0,0.00012]
[1733845060176,0.66090256,96962.0,96935.0,0.001]
[1733845060377,0.051553,96944.0,96935.0,0.002]
[1733845060579,0.57528161,96946.0,96935.0,0.001]
[1733845060580,6e-05,96936.0,96935.0,0.001]
[1733845060781,6e-05,96936.0,96935.0,3.183e-05]
[1733845061288,6e-05,96936.0,96931.0,0.01047133]
[1733845061580,0.3608,96938.0,96918.0,0.3608]
[1733845061581,0.051557,96937.0,96935.0,0.001]
[1733845061998,0.051557,96937.0,96936.0,0.00012]
[1733845062177,0.051557,96937.0,96935.0,3.275e-05]
[1733845063484,0.051557,96937.0,96935.0,0.00103275]
[1733845063688,0.3608,96938.0,96935.0,0.002]
[1733845063879,0.3608,96938.0,96937.0,0.051556]
[1733845064079,0.051557,96936.0,96935.0,0.01218385]
[1733845064279,0.051555,96941.0,96935.0,0.01218385]
[1733845064593,0.3608,96944.0,96935.0,0.002]
[1733845064594,6e-05,96936.0,96935.0,0.002]
[1733845064788,6e-05,96936.0,96935.0,0.001]
[1733845065085,6e-05,96936.0,96935.0,0.053557]
[1733845065478,6e-05,96936.0,96935.0,0.052557]
[1733845065882,6e-05,96936.0,96935.0,0.356357]
[1733845066985,6e-05,96936.0,96935.0,0.355357]
[1733845067585,6e-05,96936.0,96935.0,0.356357]
[1733845067780,6e-05,96936.0,96935.0,0.3048]
[1733845068292,0.00106,96936.0,96935.0,0.3048]
[1733845068586,0.00106,96936.0,96934.0,0.3608]
[1733845068779,0.00106,96936.0,96900.0,0.1]
[1733845068780,0.051563,96924.0,96922.0,0.3608]
[1733845069180,0.051565,96921.0,96920.0,0.01016943]
[1733845069382,6e-05,96923.0,96910.0,0.3608]
[1733845069383,0.3608,96922.0,96910.0,0.3608]
[1733845069582,6e-05,96923.0,96912.0,0.01022811]
[1733845069583,0.3608,96914.0,96912.0,0.01022811]
[1733845069790,6e-05,96914.0,96912.0,0.01022811]
[1733845071888,0.00106,96914.0,96912.0,0.01022811]
[1733845072085,0.00206,96914.0,96913.0,0.00609968]
[1733845072291,0.0910825,96927.0,96913.0,0.36689968]
[1733845072591,0.051559,96933.0,96926.0,0.3608]
[1733845072784,0.30556411,96940.0,96926.0,0.3608]
[1733845072983,0.30556411,96940.0,96932.0,0.00012]
[1733845072984,0.4518825,96935.0,96932.0,0.00012]
[1733845073183,0.051558,96933.0,96932.0,0.00012]
[1733845073592,0.20422074,96933.0,96932.0,0.00012]
[1733845074297,0.20422074,96933.0,96932.0,3.18e-06]
[1733845074494,0.10184124,96933.0,96932.0,3.18e-06]
[1733845074792,0.0516903,96933.0,96932.0,0.00100318]
[1733845074996,0.0001323,96933.0,96932.0,0.00100318]
[1733845075592,0.18303597,96951.0,96932.0,0.00300318]
[1733845075895,0.15375268,96943.0,96942.0,0.051554]
[1733845076724,0.15385449,96943.0,96942.0,0.051554]
[1733845077493,0.51465449,96943.0,96932.0,0.00300318]
[1733845077692,0.412358,96933.0,96932.0,0.00300318]
[1733845077885,6e-05,96933.0,96932.0,0.00100318]
[1733845078088,6e-05,96933.0,96932.0,0.05456218]
[1733845078583,6e-05,96933.0,96932.0,0.00200318]
[1733845079393,0.05020354,96933.0,96932.0,0.00200318]
[1733845079692,6e-05,96933.0,96932.0,0.00200318]
[1733845080200,0.15411816,96933.0,96932.0,0.00200318]
[1733845080390,0.05020042,96933.0,96932.0,0.00200318]
[1733845080694,0.05020042,96933.0,96932.0,0.00300318]
[1733845080894,0.05020042,96933.0,96932.0,7.964e-05]
[1733845081098,0.05020042,96933.0,96913.0,9.968e-05]
[1733845081099,0.051568,96914.0,96913.0,9.968e-05]
[1733845081294,0.051568,96914.0,96900.0,0.1]
[1733845081295,0.051575,96901.0,96900.0,0.1]
[1733845081593,0.46259113,96901.0,96900.0,0.1]
[1733845081896,0.05021642,96901.0,96900.0,0.1]
[1733845082089,6e-05,96901.0,96900.0,0.1]
[1733845082289,0.00016574,96901.0,96900.0,0.1]
[1733845082799,0.18503604,96906.0,96905.0,0.051573]
[1733845083004,0.001,96914.0,96905.0,0.412373]
[1733845083193,0.91552178,96944.0,96905.0,0.412373]
[1733845083194,0.21090331,96931.0,96913.0,0.3608]
[1733845083388,0.60474058,96937.0,96913.0,0.3608]
[1733845083389,0.21090331,96932.0,96924.0,0.051563]
[1733845083597,0.21090331,96932.0,96913.0,0.3608]
[1733845083598,0.21090331,96934.0,96930.0,0.00012]
[1733845083809,0.05024052,96933.0,96931.0,0.00012]
[1733845084098,0.10179952,96933.0,96931.0,0.00012]
[1733845084295,0.05015067,96932.0,96931.0,0.00012]
[1733845084506,0.14534712,96932.0,96900.0,0.11411017]
[1733845084699,0.17494029,96902.0,96900.0,0.104]
[1733845084896,6e-05,96901.0,96900.0,0.104]
[1733845085092,6e-05,96901.0,96900.0,0.1]
[1733845085696,0.09255425,96901.0,96900.0,0.1]
[1733845086092,6e-05,96901.0,96900.0,0.1]
[1733845086892,6e-05,96901.0,96900.0,0.11032331]
[1733845087299,6e-05,96901.0,96900.0,0.1]
[1733845087890,6e-05,96901.0,96900.0,0.104]
[1733845088495,0.051635,96901.0,96900.0,0.104]
[1733845089900,0.10179895,96901.0,96900.0,0.104]
[1733845090199,6e-05,96901.0,96900.0,0.104]
[1733845090404,0.05022585,96901.0,96900.0,0.104]
[1733845091096,0.15411837,96901.0,96900.0,0.104]
[1733845091293,6e-05,96901.0,96900.0,0.104]
[1733845091491,6e-05,96901.0,96890.0,0.00012972]
[1733845091492,0.35029888,96901.0,96890.0,0.00012972]
[1733845091704,0.51486516,96891.0,96890.0,0.00012972]
[1733845092015,0.56509682,96891.0,96890.0,0.00012972]
[1733845092500,0.56502682,96891.0,96890.0,0.00012972]
[1733845093101,0.56502682,96891.0,96890.0,0.05171072]
[1733845093310,0.15412516,96891.0,96890.0,0.05171072]
[1733845094200,0.15412516,96891.0,96890.0,0.00612972]
[1733845094707,0.15412516,96891.0,96890.0,0.05771072]
[1733845095002,0.15512516,96891.0,96890.0,0.05171072]
[1733845095206,0.15612516,96891.0,96890.0,0.05671072]
[1733845095699,0.15612516,96891.0,96890.0,0.00512972]
[1733845096006,0.51692516,96891.0,96890.0,0.00512972]
[1733845097206,0.24845234,96891.0,96890.0,0.05671072]
[1733845097808,0.21607064,96901.0,96900.0,0.051576]
[1733845098001,0.21607064,96901.0,96900.0,0.05298929]
[1733845098002,0.09242895,96901.0,96900.0,0.05298929]
[1733845098199,0.12313504,96923.0,96900.0,0.35310929]
[1733845098517,0.051557,96936.0,96922.0,0.00012]
[1733845098704,0.3608,96937.0,96922.0,0.00012]
[1733845098705,0.3608,96928.0,96922.0,0.00012]
[1733845099008,0.3608,96928.0,96925.0,0.00141329]
[1733845099009,0.412361,96928.0,96925.0,0.00141329]
[1733845099204,0.05167303,96927.0,96925.0,0.00141329]
[1733845099405,0.00011103,96927.0,96925.0,0.00141329]
[1733845099802,0.05167303,96927.0,96925.0,0.00141329]
[1733845099997,0.05014971,96924.0,96909.0,0.01263419]
[1733845100205,0.05014971,96924.0,96897.0,0.26703846]
[1733845100206,0.3608,96914.0,96904.0,0.051573]
[1733845100509,6e-05,96910.0,96909.0,0.051571]
[1733845100707,6e-05,96910.0,96900.0,0.055575]
[1733845101010,0.00106,96901.0,96900.0,0.052575]
[1733845101508,6e-05,96901.0,96900.0,0.051575]
[1733845102007,6e-05,96901.0,96900.0,0.053575]
[1733845102404,6e-05,96901.0,96900.0,0.057575]
[1733845102603,6e-05,96901.0,96900.0,0.055575]
[1733845102814,0.00106,96901.0,96900.0,0.057575]
[1733845104101,6e-05,96910.0,96909.0,0.051571]
[1733845104811,6e-05,96910.0,96909.0,0.0529839]
[1733845105308,6e-05,96910.0,96909.0,0.0549839]
[1733845105507,6e-05,96910.0,96909.0,0.0559839]
[1733845105711,6e-05,96910.0,96909.0,0.0044129]
[1733845106907,6e-05,96910.0,96872.0,0.24658497]
[1733845106908,0.051581,96891.0,96872.0,0.24658497]
[1733845107209,0.36086,96891.0,96871.0,0.24658497]
[1733845107410,0.3608,96881.0,96866.0,0.0206166]
[1733845107612,0.051588,96878.0,96861.0,0.00198]
[1733845107815,0.3608,96869.0,96861.0,0.00198]
[1733845108313,0.000108,96868.0,96861.0,0.01496194]
[1733845108511,6e-05,96862.0,96861.0,0.01496194]
[1733845108815,6e-05,96862.0,96861.0,0.00198]
[1733845109208,6e-05,96862.0,96861.0,0.00498]
[1733845110300,6e-05,96862.0,96861.0,0.01098]
[1733845111214,0.00106,96862.0,96861.0,0.01098]
[1733845111412,0.00106,96862.0,96861.0,0.00798]
[1733845111725,0.00106,96862.0,96861.0,0.00898]
[1733845112114,0.00206,96862.0,96861.0,0.00898]
[1733845112808,0.053656,96862.0,96861.0,0.00898]
[1733845115034,0.00206,96862.0,96861.0,0.00898]
[1733845117220,0.00206,96862.0,96850.0,0.0001334]
[1733845117422,0.412402,96851.0,96850.0,0.0001334]
[1733845117719,0.412462,96851.0,96850.0,0.0001334]
[1733845118418,0.36086,96851.0,96850.0,0.0001334]
[1733845118623,0.36086,96851.0,96850.0,0.0041334]
[1733845119413,0.36086,96851.0,96850.0,0.0051334]
[1733845119414,0.36186,96851.0,96850.0,0.0051334]
[1733845120321,0.00106,96851.0,96850.0,0.0051334]
[1733845120813,0.00106,96851.0,96850.0,0.00835989]
[1733845121019,0.00106,96851.0,96850.0,0.00435989]
[1733845121209,0.00106,96851.0,96850.0,0.00635989]
[1733845121618,0.00106,96851.0,96850.0,0.0031334]
[1733845122119,0.30106,96851.0,96827.0,0.3608]
[1733845122321,0.30106,96851.0,96817.0,0.24658497]
[1733845122322,0.051619,96820.0,96817.0,0.24658497]
[1733845122510,0.41242,96818.0,96817.0,0.24658497]
[1733845122711,0.051622,96814.0,96813.0,0.03783128]
[1733845122915,0.051622,96814.0,96772.0,0.24583279]
[1733845122916,0.051628,96802.0,96773.0,0.3112]
[1733845123120,0.36090248,96801.0,96773.0,0.3112]
[1733845123421,0.36090248,96801.0,96774.0,0.02089127]
[1733845123422,0.051634,96790.0,96774.0,0.02089127]
[1733845123725,0.412494,96790.0,96772.0,0.00012197]
[1733845124118,0.412494,96790.0,96777.0,0.0126328]
[1733845124313,0.051643,96774.0,96772.0,0.00012197]
[1733845124516,0.412443,96774.0,96772.0,0.00012197]
[1733845124718,6e-05,96773.0,96772.0,0.00012197]
[1733845126322,6e-05,96773.0,96746.0,0.3608]
[1733845126323,0.05165,96761.0,96746.0,0.3608]
[1733845126517,6e-05,96773.0,96746.0,0.37385548]
[1733845126518,0.21448161,96770.0,96746.0,0.37385548]
[1733845126718,6e-05,96747.0,96746.0,0.06471348]
[1733845126911,6e-05,96747.0,96746.0,0.08490053]
[1733845127816,6e-05,96747.0,96746.0,0.44570053]
[1733845128216,0.001,96773.0,96746.0,0.74570053]
[1733845128416,0.002,96773.0,96772.0,0.412444]
[1733845128624,0.001,96773.0,96772.0,0.412444]
[1733845128814,0.3608,96797.0,96772.0,0.412444]
[1733845128815,0.051628,96804.0,96772.0,0.3608]
[1733845129013,0.3608,96821.0,96746.0,0.03324253]
[1733845129014,0.051645,96771.0,96754.0,0.412454]
[1733845129219,0.3608,96765.0,96755.0,0.00322906]
[1733845129419,0.3608,96757.0,96756.0,0.00322906]
[1733845129812,0.3608,96757.0,96746.0,0.02018705]
[1733845130019,0.3608,96757.0,96747.0,0.00322932]
[1733845130318,0.3608,96767.0,96751.0,0.3608]
[1733845130519,0.3608,96767.0,96757.0,0.051652]
[1733845130715,0.3608,96767.0,96751.0,0.3608]
[1733845130915,0.3608,96767.0,96753.0,0.051654]
[1733845131348,0.3608,96767.0,96754.0,0.051654]
[1733845131627,0.3608,96787.0,96766.0,0.3608]
[1733845131824,0.001,96771.0,96766.0,0.3608]
[1733845132022,0.001,96771.0,96770.0,0.051645]
[1733845132218,0.3618,96771.0,96757.0,0.001]
[1733845132417,0.3608,96758.0,96757.0,0.01306749]
[1733845132622,0.051649,96763.0,96754.0,0.002]
[1733845132823,0.3608,96762.0,96754.0,0.002]
[1733845133029,6e-05,96755.0,96754.0,0.002]
[1733845134025,6e-05,96755.0,96746.0,0.02018705]
[1733845134232,6e-05,96755.0,96753.0,0.051654]
[1733845134424,0.001,96767.0,96757.0,0.051652]
[1733845134736,0.001,96767.0,96766.0,0.00012]
[1733845134930,0.3608,96782.0,96766.0,0.00012]
[1733845135124,0.3608,96774.0,96766.0,0.00012]
[1733845135329,0.051645,96772.0,96757.0,0.051652]
[1733845135529,0.3608,96774.0,96759.0,0.051651]
[1733845135726,0.3608,96774.0,96760.0,0.36402934]
[1733845135928,0.3608,96774.0,96761.0,0.00322934]
[1733845136134,0.051648,96764.0,96762.0,0.00322934]
[1733845136323,0.3608,96765.0,96757.0,0.001]
[1733845136929,0.3608,96765.0,96764.0,0.00012]
[1733845138932,0.3608,96774.0,96766.0,0.051647]
[1733845139122,0.3608,96774.0,96767.0,0.00322947]
[1733845139324,0.3608,96774.0,96773.0,0.00012]
[1733845140434,0.051654,96753.0,96746.0,0.051658]
[1733845140756,0.051658,96747.0,96745.0,0.01278469]
[1733845141035,0.3608,96754.0,96745.0,0.01278469]
[1733845141036,0.051655,96751.0,96745.0,0.051658]
[1733845141241,6e-05,96746.0,96745.0,0.051658]
[1733845142033,0.3608,96784.0,96752.0,0.051655]
[1733845142227,0.3608,96784.0,96768.0,0.3608]
[1733845142428,0.3608,96799.0,96768.0,0.3608]
[1733845142429,0.3608,96789.0,96785.0,0.051637]
[1733845142837,0.3608,96789.0,96788.0,0.00012]
[1733845143137,0.26610561,96810.0,96788.0,0.36092]
[1733845143330,0.26610561,96810.0,96796.0,0.051631]
[1733845143331,0.3608,96807.0,96796.0,0.051631]
[1733845143529,0.3608,96797.0,96769.0,0.051645]
[1733845143724,0.3608,96772.0,96770.0,0.0051656]
[1733845144031,0.051645,96771.0,96770.0,0.0051656]
[1733845144235,0.3608,96772.0,96770.0,0.0051656]
[1733845144430,0.3608,96772.0,96770.0,0.0568106]
[1733845144638,0.3608,96772.0,96770.0,0.0051656]
[1733845144837,0.3608,96772.0,96769.0,0.01285956]
[1733845145039,0.3608,96783.0,96753.0,0.6548]
[1733845145236,0.001,96771.0,96770.0,0.004]
[1733845145432,0.001,96771.0,96770.0,0.00916694]
[1733845145735,0.052645,96771.0,96770.0,0.005]
[1733845146233,0.052645,96771.0,96740.0,8e-05]
[1733845146234,0.051647,96766.0,96765.0,0.00254997]
[1733845146427,0.051661,96741.0,96740.0,8e-05]
[1733845146628,0.773261,96741.0,96740.0,8e-05]
[1733845147437,0.773261,96741.0,96672.0,0.00967487]
[1733845147736,0.051689,96688.0,96686.0,0.33053193]
[1733845147939,0.051693,96680.0,96678.0,0.67057397]
[1733845148132,0.3608,96679.0,96678.0,0.66981397]
[1733845148332,0.36086,96679.0,96678.0,0.66981397]
[1733845148532,0.66210063,96679.0,96666.0,0.051701]
[1733845148734,0.3608,96667.0,96666.0,0.051701]
[1733845149033,0.62786464,96667.0,96658.0,0.051705]
[1733845149233,0.18391973,96661.0,96640.0,0.48700557]
[1733845149431,0.1532666,96651.0,96647.0,0.3608]
[1733845149631,0.18391973,96662.0,96650.0,0.02084462]
[1733845149936,8.669e-05,96679.0,96661.0,0.3608]
[1733845150131,0.21448161,96730.0,96678.0,0.7216]
[1733845150327,0.05167,96723.0,96722.0,0.3608]
[1733845150527,0.41847168,96723.0,96722.0,0.3608]
[1733845150736,0.46874375,96723.0,96722.0,0.9608]
[1733845151038,7.909e-05,96723.0,96722.0,0.9608]
[1733845151538,0.00507909,96723.0,96722.0,0.9608]
[1733845151935,0.05674909,96723.0,96722.0,0.9608]
[1733845152143,0.00507909,96723.0,96722.0,0.9608]
[1733845152443,0.00507909,96723.0,96722.0,1.012471]
[1733845152939,0.3050356,96764.0,96729.0,0.051667]
[1733845153138,0.051654,96754.0,96752.0,0.3608]
[1733845153331,0.051654,96753.0,96752.0,0.3608]
[1733845153936,0.05173882,96753.0,96752.0,0.3608]
[1733845154135,0.05173882,96753.0,96731.0,0.3608]
[1733845154136,0.051662,96739.0,96731.0,0.3608]
[1733845154338,0.051665,96734.0,96732.0,0.6]
[1733845154742,0.051658,96746.0,96732.0,0.6]
[1733845154948,8.482e-05,96753.0,96741.0,0.3608]
[1733845155135,8.482e-05,96753.0,96752.0,0.3608]
[1733845155738,8.482e-05,96753.0,96752.0,0.9608]
[1733845156940,8.482e-05,96753.0,96752.0,0.97340654]
[1733845157139,0.00508482,96753.0,96752.0,0.97540654]
[1733845157646,6e-05,96766.0,96752.0,0.97540654]
[1733845157839,6e-05,96766.0,96765.0,0.412448]
[1733845158142,6e-05,96766.0,96765.0,0.412568]
[1733845158846,0.00017133,96766.0,96765.0,0.412568]
[1733845159556,0.00017133,96766.0,96765.0,0.417568]
[1733845160461,0.00017133,96766.0,96765.0,0.36592]
[1733845160747,0.00017133,96766.0,96765.0,0.36792]
[1733845160944,0.00017133,96766.0,96765.0,0.00712]
[1733845161245,0.051654,96754.0,96752.0,0.3608]
[1733845161440,0.21448161,96762.0,96752.0,0.3608]
[1733845161750,6e-05,96753.0,96752.0,0.3608]
[1733845162151,0.041714,96754.0,96752.0,0.3608]
[1733845163336,0.00217133,96766.0,96752.0,0.3608]
[1733845163549,0.05381833,96766.0,96761.0,0.3608]
[1733845163755,0.05381833,96766.0,96765.0,0.00012]
[1733845164943,0.05181833,96766.0,96765.0,0.00012]
[1733845165250,0.05381833,96766.0,96765.0,0.00012]
[1733845165451,0.05881833,96766.0,96765.0,0.00012]
[1733845165942,0.051672,96720.0,96710.0,0.00012537]
[1733845166144,0.36092785,96719.0,96710.0,0.00012537]
[1733845166346,0.051677,96711.0,96710.0,0.00012537]
[1733845166640,0.412537,96711.0,96710.0,0.00012537]
[1733845166846,0.051694,96680.0,96678.0,0.00012]
[1733845167044,0.3608,96679.0,96678.0,0.00012]
[1733845167343,0.36086,96679.0,96678.0,0.00012]
[1733845167543,0.3512757,96679.0,96678.0,0.00012]
[1733845167743,0.35138448,96679.0,96678.0,0.00012]
[1733845167949,0.35138448,96679.0,96678.0,0.00112]
[1733845168246,0.34755076,96679.0,96678.0,0.00112]
[1733845168447,0.39924476,96679.0,96678.0,0.00112]
[1733845168636,0.34755076,96679.0,96678.0,0.00112]
[1733845168836,0.35155076,96679.0,96678.0,0.00012]
[1733845169041,0.35755076,96679.0,96678.0,0.00012]
[1733845169553,0.35755076,96679.0,96678.0,6.61e-06]
[1733845169738,0.051704,96660.0,96659.0,0.6]
[1733845170049,0.412564,96660.0,96659.0,0.6]
[1733845170544,0.41103051,96660.0,96659.0,0.6]
[1733845170739,0.36086,96660.0,96656.0,0.051706]
[1733845170944,0.36086,96660.0,96658.0,0.0532507]
[1733845171148,0.3608,96660.0,96659.0,0.6]
[1733845171445,0.36018661,96660.0,96659.0,0.601]
[1733845172045,0.36018661,96660.0,96659.0,0.6025457]
[1733845173152,0.36018661,96660.0,96659.0,0.6045457]
[1733845173647,0.35994125,96660.0,96659.0,0.6045457]
[1733845174142,0.35994125,96660.0,96659.0,0.0045457]
[1733845174345,0.051715,96639.0,96637.0,0.00010638]
[1733845174545,0.3608,96638.0,96637.0,0.00010638]
[1733845174941,0.3609111,96638.0,96637.0,0.00010638]
[1733845175546,0.3609111,96638.0,96637.0,0.60610638]
[1733845176552,0.3608411,96638.0,96637.0,0.60610638]
[1733845176757,0.3618411,96638.0,96637.0,0.60810638]
[1733845177141,0.3618411,96638.0,96637.0,0.60510638]
[1733845177852,0.3618411,96638.0,96637.0,0.00510638]
[1733845178445,0.3608411,96638.0,96637.0,0.00310638]
[1733845178652,0.3618411,96638.0,96637.0,0.00310638]
[1733845179548,0.4135571,96638.0,96637.0,0.00310638]
[1733845180757,0.4135571,96638.0,96560.0,0.051757]
[1733845180758,0.05174,96592.0,96560.0,0.051757]
[1733845180949,0.3608,96561.0,96528.0,0.30527549]
[1733845181144,0.36086,96561.0,96559.0,0.00056]